fUST/lending_fUST_20250723
["ID","MTS","AMOUNT","RATE_DAILY","PERIOD"]
[374288471,1753265478925,-13476.56452872,0.0002423,2]
[374288472,1753265478935,-3000.0,0.0002423,2]
[374288473,1753265478951,-500.0,0.00024236,2]
[374288474,1753265478963,-3000.0,0.0002424,2]
[374288475,1753265478973,-152.712855,0.00024245,10]
[374288476,1753265478982,-152.712855,0.00024245,10]
[374288477,1753265478992,-3000.0,0.0002425,2]
[374288478,1753265479002,-205.0,0.0002426,2]
[374288479,1753265479012,-3000.0,0.0002426,2]
[374288480,1753265479022,-434.19270689,0.00024268,2]
[374288481,1753265479032,-3000.0,0.0002427,2]
[374288482,1753265479041,-3000.0,0.0002428,2]
[374288483,1753265479051,-152.712855,0.00024282,2]
[374288484,1753265479061,-3000.0,0.0002429,2]
[374288485,1753265479072,-3000.0,0.000243,2]
[374288486,1753265479081,-600.0,0.00024307,2]
[374288487,1753265479091,-3000.0,0.0002431,2]
[374288488,1753265479101,-3000.0,0.0002432,2]
[374288489,1753265479110,-3000.0,0.0002433,2]
[374288490,1753265479120,-180.05127002,0.0002434,2]
[374288491,1753265479130,-3000.0,0.0002434,2]
[374288492,1753265479140,-3000.0,0.0002435,2]
[374288493,1753265479150,-3000.0,0.0002436,2]
[374288494,1753265479159,-3000.0,0.0002437,2]
[374288495,1753265479168,-3000.0,0.0002438,2]
[374288496,1753265479178,-1396.32,0.00024383,2]
[374288497,1753265479187,-272.47,0.00024383,2]
[374288498,1753265479196,-1130.89,0.00024383,2]
[374288499,1753265479206,-806.5,0.00024383,2]
[374288500,1753265479215,-460.0,0.00024383,2]
[374288501,1753265479224,-1052.43,0.00024383,2]
[374288502,1753265479233,-355.03463939,0.00024383,2]
[374288503,1753265479243,-460.0,0.00024383,2]
[374288504,1753265479253,-2210.59,0.00024383,2]
[374288505,1753265479262,-750.25,0.00024383,2]
[374288506,1753265479272,-502.17,0.00024383,2]
[374288507,1753265479282,-590.43,0.00024383,2]
[374288508,1753265479292,-460.0,0.00024383,2]
[374288509,1753265479302,-545.58,0.00024383,2]
[374288510,1753265479314,-1371.54,0.00024383,2]
[374288511,1753265479323,-460.0,0.00024383,2]
[374288512,1753265479337,-495.25,0.00024383,2]
[374288513,1753265479346,-1752.06,0.00024383,2]
[374288514,1753265479355,-2780.13,0.00024383,2]
[374288515,1753265479365,-492.84,0.00024383,2]
[374288516,1753265479375,-485.84,0.00024383,2]
[374288517,1753265479388,-1117.767002,0.00024383,7]
[374288518,1753265479398,-1117.767002,0.00024383,7]
[374288519,1753265479410,-1705.5,0.00024383,2]
[374288520,1753265479419,-460.0,0.00024383,2]
[374288521,1753265479430,-979.8,0.00024383,2]
[374288522,1753265479440,-493.35,0.00024383,2]
[374288523,1753265479450,-460.0,0.00024383,2]
[374288524,1753265479459,-3732.57,0.00024383,2]
[374288525,1753265479468,-538.86,0.00024383,2]
[374288526,1753265479477,-5749.02,0.00024383,2]
[374288527,1753265479487,-460.0,0.00024383,2]
[374288528,1753265479497,-713.04,0.00024383,2]
[374288529,1753265479506,-481.58304691,0.00024383,2]
[374288530,1753265479516,-1054.45,0.00024383,2]
[374288531,1753265479527,-460.0,0.00024383,2]
[374288532,1753265479538,-498.33,0.00024383,2]
[374288533,1753265479548,-460.0,0.00024383,2]
[374288534,1753265479557,-2109.27,0.00024383,2]
[374288535,1753265479567,-1050.54,0.00024383,2]
[374288536,1753265479577,-460.0,0.00024383,2]
[374288537,1753265479586,-460.0,0.00024383,2]
[374288538,1753265479596,-546.88,0.00024383,2]
[374288539,1753265479605,-153.413491,0.00024383,7]
[374288540,1753265479614,-153.413491,0.00024383,7]
[374288541,1753265479623,-460.0,0.00024383,2]
[374288542,1753265479633,-153.0,0.00024384,2]
[374288543,1753265479642,-159.9205653,0.00024384,2]
[374288544,1753265479651,-178.2325116,0.00024384,2]
[374288545,1753265479661,-577.5430988,0.00024384,2]
[374288546,1753265479670,-153.0,0.00024384,2]
[374288547,1753265479680,-159.9205653,0.00024384,2]
[374288548,1753265479690,-577.5430988,0.00024384,2]
[374288549,1753265479699,-178.2325116,0.00024384,2]
[374288550,1753265479709,-178.2325116,0.00024384,2]
[374288551,1753265479718,-577.5430988,0.00024384,2]
[374288552,1753265479728,-159.9205653,0.00024384,2]
[374288553,1753265479737,-159.9205653,0.00024384,2]
[374288554,1753265479747,-178.2325116,0.00024384,2]
[374288555,1753265479756,-577.5430988,0.00024384,2]
[374288556,1753265479766,-153.0,0.00024384,2]
[374288557,1753265479775,-178.2325116,0.00024384,2]
[374288558,1753265479785,-577.5430988,0.00024384,2]
[374288559,1753265479794,-159.9205653,0.00024384,2]
[374288560,1753265479803,-178.2325116,0.00024384,2]
[374288561,1753265479814,-159.9205653,0.00024384,2]
[374288562,1753265479823,-153.0,0.00024384,2]
[374288563,1753265479832,-577.5430988,0.00024384,2]
[374288564,1753265479841,-577.5430988,0.00024384,2]
[374288565,1753265479851,-178.2325116,0.00024384,2]
[374288566,1753265479861,-159.9205653,0.00024384,2]
[374288567,1753265479870,-178.2325116,0.00024384,2]
[374288568,1753265479880,-159.9205653,0.00024384,2]
[374288569,1753265479889,-153.0,0.00024384,2]
[374288570,1753265479898,-577.5430988,0.00024384,2]
[374288571,1753265479907,-178.2325116,0.00024384,2]
[374288572,1753265479917,-159.9205653,0.00024384,2]
[374288573,1753265479926,-575.1084603,0.00024384,2]
[374288574,1753265479935,-153.0,0.00024384,2]
[374288575,1753265479945,-159.9205653,0.00024384,2]
[374288576,1753265479954,-178.2325116,0.00024384,2]
[374288577,1753265479963,-159.9205653,0.00024384,2]
[374288578,1753265479973,-178.2325116,0.00024384,2]
[374288579,1753265479982,-178.2325116,0.00024384,2]
[374288580,1753265479991,-159.9205653,0.00024384,2]
[374288581,1753265480001,-153.0,0.00024384,2]
[374288582,1753265480010,-159.9205653,0.00024384,2]
[374288583,1753265480019,-178.2325116,0.00024384,2]
[374288584,1753265480029,-159.9205653,0.00024384,2]
[374288585,1753265480038,-153.0,0.00024384,2]
[374288586,1753265480047,-178.2325116,0.00024384,2]
[374288587,1753265480057,-178.2325116,0.00024384,2]
[374288588,1753265480067,-159.9205653,0.00024384,2]
[374288589,1753265480076,-159.9205653,0.00024384,2]
[374288590,1753265480086,-153.0,0.00024384,2]
[374288591,1753265480096,-159.9205653,0.00024384,2]
[374288592,1753265480105,-153.0,0.00024384,2]
[374288593,1753265480115,-159.9205653,0.00024384,2]
[374288594,1753265480124,-159.9205653,0.00024384,2]
[374288595,1753265480133,-153.0,0.00024384,2]
[374288596,1753265480143,-159.680395,0.00024384,2]
[374288597,1753265480157,-577.5430988,0.00024384,2]
[374288598,1753265480167,-159.9205653,0.00024384,2]
[374288599,1753265480177,-3000.0,0.0002439,2]
[374288600,1753265480186,-3000.0,0.000244,2]
[374288601,1753265480195,-231.28369723,0.00024401,2]
[374288602,1753265480297,-600.0,0.00024407,2]
[374288603,1753265480321,-3000.0,0.0002441,2]
[374288604,1753265480331,-194.56877943,0.00024415,2]
[374288605,1753265480345,-3000.0,0.0002442,2]
[374288606,1753265480354,-600.0,0.00024424,2]
[374288607,1753265480365,-3000.0,0.0002443,2]
[374288608,1753265480374,-600.0,0.00024432,2]
[374288609,1753265480384,-3000.0,0.0002444,2]
[374288610,1753265480394,-3372.59522573,0.00024444,2]
[374288611,1753265480404,-3000.0,0.0002445,2]
[374288612,1753265480414,-3000.0,0.0002446,2]
[374288613,1753265480423,-3000.0,0.0002447,2]
[374288614,1753265480433,-3000.0,0.0002448,2]
[374288615,1753265480442,-800.0,0.00024482,2]
[374288616,1753265480451,-3000.0,0.0002449,2]
[374288617,1753265480461,-151.0,0.000245,7]
[374288618,1753265480471,-325.682028,0.000245,8]
[374288619,1753265480481,-151.0,0.000245,7]
[374288620,1753265480492,-151.0,0.000245,7]
[374288621,1753265480501,-3000.0,0.000245,2]
[374288622,1753265480511,-1862.98,0.000245,2]
[374288623,1753265480520,-1004.284523,0.000245,2]
[374288624,1753265480530,-250.0,0.000245,10]
[374288625,1753265480539,-600.0,0.00024501,2]
[374288626,1753265480549,-205.0,0.0002456,2]
[374288627,1753265480557,-168.0,0.00024565,2]
[374288628,1753265480568,-152.712855,0.00024576,10]
[374288629,1753265480578,-152.712855,0.00024576,10]
[374288630,1753265480587,-823.0,0.00024577,2]
[374288631,1753265480596,-600.0,0.00024584,2]
[374288632,1753265480606,-2977.51,0.000246,7]
[374288633,1753265480615,-250.0,0.000246,10]
[374288634,1753265480625,-4290.92441391,0.00024612,2]
[374288635,1753265480634,-151.0,0.0002464,7]
[374288636,1753265480644,-151.0,0.0002464,7]
[374288637,1753265480654,-159.965224,0.0002464,7]
[374288638,1753265480663,-159.965224,0.0002464,7]
[374288639,1753265480672,-152.712855,0.0002465,3]
[374288640,1753265480681,-152.712855,0.0002465,3]
[374288641,1753265480691,-1396.32,0.00024657,2]
[374288642,1753265480701,-272.47,0.00024657,2]
[374288643,1753265480712,-1130.89,0.00024657,2]
[374288644,1753265480722,-806.5,0.00024657,2]
[374288645,1753265480732,-460.0,0.00024657,2]
[374288646,1753265480742,-1052.43,0.00024657,2]
[374288647,1753265480751,-460.0,0.00024657,2]
[374288648,1753265480761,-2210.59,0.00024657,2]
[374288649,1753265480770,-750.25,0.00024657,2]
[374288650,1753265480779,-502.17,0.00024657,2]
[374288651,1753265480788,-151.0,0.00024657,7]
[374288652,1753265480798,-590.43,0.00024657,2]
[374288653,1753265480807,-151.0,0.00024657,7]
[374288654,1753265480820,-460.0,0.00024657,2]
[374288655,1753265480829,-545.58,0.00024657,2]
[374288656,1753265480839,-1371.54,0.00024657,2]
[374288657,1753265480849,-460.0,0.00024657,2]
[374288658,1753265480858,-495.25,0.00024657,2]
[374288659,1753265480867,-1752.06,0.00024657,2]
[374288660,1753265480877,-2780.13,0.00024657,2]
[374288661,1753265480887,-492.84,0.00024657,2]
[374288662,1753265480897,-485.84,0.00024657,2]
[374288663,1753265480907,-360.694872,0.00024657,7]
[374288664,1753265480916,-360.694872,0.00024657,7]
[374288665,1753265480926,-1705.5,0.00024657,2]
[374288666,1753265480935,-460.0,0.00024657,2]
[374288667,1753265480944,-979.8,0.00024657,2]
[374288668,1753265480953,-493.35,0.00024657,2]
[374288669,1753265480963,-534.22,0.00024657,2]
[374288670,1753265480972,-3732.57,0.00024657,2]
[374288671,1753265480981,-1151.421358,0.00024657,7]
[374288672,1753265480991,-538.86,0.00024657,2]
[374288673,1753265481001,-1151.421358,0.00024657,7]
[374288674,1753265481010,-5749.02,0.00024657,2]
[374288675,1753265481020,-460.0,0.00024657,2]
[374288676,1753265481030,-713.04,0.00024657,2]
[374288677,1753265481039,-151.0,0.00024657,7]
[374288678,1753265481049,-1054.45,0.00024657,2]
[374288679,1753265481059,-460.0,0.00024657,2]
[374288680,1753265481279,-498.33,0.00024657,2]
[374288681,1753265481289,-460.0,0.00024657,2]
[374288682,1753265481298,-2109.27,0.00024657,2]
[374288683,1753265481308,-1050.54,0.00024657,2]
[374288684,1753265481321,-295.905301,0.00024657,7]
[374288685,1753265481330,-295.905301,0.00024657,7]
[374288686,1753265481342,-460.0,0.00024657,2]
[374288687,1753265481351,-460.0,0.00024657,2]
[374288688,1753265481360,-546.88,0.00024657,2]
[374288689,1753265481370,-545.89,0.00024657,2]
[374288690,1753265481380,-200.91900509,0.00024658,2]
[374288691,1753265481389,-380.0,0.00024658,2]
[374288692,1753265481399,-543.66,0.00024658,2]
[374288693,1753265481407,-800.0,0.00024691,2]
[374288694,1753265481418,-600.0,0.00024691,2]
[374288695,1753265481428,-160.0,0.000247,7]
[374288696,1753265481437,-50523.38,0.000247,2]
[374288697,1753265481446,-487.473161,0.000247,7]
[374288698,1753265481455,-487.473161,0.000247,7]
[374288699,1753265481464,-151.0,0.000247,7]
[374288700,1753265481473,-250.0,0.000247,10]
[374288701,1753265481482,-800.0,0.00024756,2]
[374288702,1753265481491,-1789.09,0.00024769,2]
[374288703,1753265481502,-200.0,0.0002477,12]
[374288704,1753265481511,-150.11983124,0.00024773,2]
[374288705,1753265481521,-600.0,0.00024773,2]
[374288706,1753265481530,-500.0,0.0002478,2]
[374288707,1753265481539,-219.375609,0.000248,7]
[374288708,1753265481548,-219.375609,0.000248,7]
[374288709,1753265481557,-372.767315,0.000248,7]
[374288710,1753265481568,-372.767315,0.000248,7]
[374288711,1753265481577,-151.0,0.000248,7]
[374288712,1753265481586,-12153.16,0.000248,7]
[374288713,1753265481595,-1120.994708,0.000248,7]
[374288714,1753265481606,-432.053455,0.000248,10]
[374288715,1753265481615,-151.0,0.000248,7]
[374288716,1753265481626,-298426.962169,0.000248,2]
[374288717,1753265481636,-643.0,0.000248,2]
[374288718,1753265481646,-1117.767002,0.00024802,7]
[374288719,1753265481655,-1117.767002,0.00024802,7]
[374288720,1753265481665,-153.413491,0.00024802,7]
[374288721,1753265481674,-153.413491,0.00024802,7]
[374288722,1753265481683,-800.0,0.00024803,2]
[374288723,1753265481693,-501.55298466,0.0002482,9]
[374288724,1753265481702,-800.0,0.00024839,2]
[374288725,1753265481712,-205.0,0.0002486,2]
[374288726,1753265481721,-168.0,0.0002487,2]
[374288727,1753265481731,-600.0,0.00024879,2]
[374288728,1753265481741,-1789.09,0.00024899,2]
[374288729,1753265481752,-1789.09,0.00024899,2]
[374288730,1753265481762,-1789.09,0.00024899,2]
[374288731,1753265481771,-1789.09,0.00024899,2]
[374288732,1753265481781,-1789.09,0.00024899,2]
[374288733,1753265481790,-1789.09,0.00024899,2]
[374288734,1753265481800,-1789.09,0.00024899,2]
[374288735,1753265481809,-151.0,0.000249,7]
[374288736,1753265481820,-151.0,0.000249,7]
[374288737,1753265481829,-151.0,0.000249,7]
[374288738,1753265481838,-208.944323,0.000249,7]
[374288739,1753265481848,-151.0,0.000249,7]
[374288740,1753265481857,-151.0,0.000249,7]
[374288741,1753265481867,-151.0,0.000249,7]
[374288742,1753265481878,-151.0,0.000249,7]
[374288743,1753265481888,-151.0,0.000249,7]
[374288744,1753265481897,-151.0,0.000249,7]
[374288745,1753265481908,-219.375609,0.000249,7]
[374288746,1753265481917,-219.375609,0.000249,7]
[374288747,1753265481926,-372.767315,0.000249,7]
[374288748,1753265481935,-372.767315,0.000249,7]
[374288749,1753265481945,-151.0,0.000249,7]
[374288750,1753265481954,-151.0,0.000249,7]
[374288751,1753265481963,-151.0,0.000249,7]
[374288752,1753265481972,-159.965224,0.000249,7]
[374288753,1753265481981,-151.0,0.000249,7]
[374288754,1753265481991,-159.965224,0.000249,7]
[374288755,1753265482000,-151.0,0.000249,7]
[374288756,1753265482009,-1120.994708,0.000249,7]
[374288757,1753265482019,-7220.31449092,0.000249,2]
[374288758,1753265482028,-2935.039589,0.000249,7]
[374288759,1753265482037,-2935.039589,0.000249,7]
[374288760,1753265482047,-487.473161,0.000249,7]
[374288761,1753265482056,-487.473161,0.000249,7]
[374288762,1753265482066,-151.0,0.000249,7]
[374288763,1753265482075,-151.0,0.000249,7]
[374288764,1753265482085,-210.971553,0.000249,7]
[374288765,1753265482094,-1117.767002,0.000249,7]
[374288766,1753265482103,-360.694872,0.000249,7]
[374288767,1753265482112,-360.694872,0.000249,7]
[374288768,1753265482121,-1117.767002,0.000249,7]
[374288769,1753265482130,-714852.757438,0.000249,2]
[374288770,1753265482139,-1151.421358,0.000249,7]
[374288771,1753265482148,-1151.421358,0.000249,7]
[374288772,1753265482158,-153.413491,0.000249,7]
[374288773,1753265482167,-153.413491,0.000249,7]
[374288774,1753265482177,-152.712855,0.00024907,10]
[374288775,1753265482186,-152.712855,0.00024907,10]
[374288776,1753265482195,-800.0,0.00024911,2]
[374288777,1753265482204,-1789.09,0.00024911,2]
[374288778,1753265482213,-1000.0,0.0002492,5]
[374288779,1753265482222,-2200.0,0.00024922,2]
[374288780,1753265482231,-500.0,0.00024929,2]
[374288781,1753265482240,-1396.32,0.00024931,2]
[374288782,1753265482249,-272.47,0.00024931,2]
[374288783,1753265482259,-1130.89,0.00024931,2]
[374288784,1753265482267,-806.5,0.00024931,2]
[374288785,1753265482276,-460.0,0.00024931,2]
[374288786,1753265482286,-1052.43,0.00024931,2]
[374288787,1753265482295,-460.0,0.00024931,2]
[374288788,1753265482304,-2210.59,0.00024931,2]
[374288789,1753265482313,-750.25,0.00024931,2]
[374288790,1753265482324,-502.17,0.00024931,2]
[374288791,1753265482334,-590.43,0.00024931,2]
[374288792,1753265482345,-460.0,0.00024931,2]
[374288793,1753265482355,-545.58,0.00024931,2]
[374288794,1753265482364,-1371.54,0.00024931,2]
[374288795,1753265482373,-460.0,0.00024931,2]
[374288796,1753265482384,-495.25,0.00024931,2]
[374288797,1753265482393,-2780.13,0.00024931,2]
[374288798,1753265482403,-1752.06,0.00024931,2]
[374288799,1753265482413,-492.84,0.00024931,2]
[374288800,1753265482422,-485.84,0.00024931,2]
[374288801,1753265482432,-1705.5,0.00024931,2]
[374288802,1753265482441,-460.0,0.00024931,2]
[374288803,1753265482450,-979.8,0.00024931,2]
[374288804,1753265482459,-493.35,0.00024931,2]
[374288805,1753265482468,-3732.57,0.00024931,2]
[374288806,1753265482477,-538.86,0.00024931,2]
[374288807,1753265482486,-5749.02,0.00024931,2]
[374288808,1753265482495,-460.0,0.00024931,2]
[374288809,1753265482505,-713.04,0.00024931,2]
[374288810,1753265482515,-1054.45,0.00024931,2]
[374288811,1753265482524,-460.0,0.00024931,2]
[374288812,1753265482534,-498.33,0.00024931,2]
[374288813,1753265482543,-512.68316805,0.00024931,2]
[374288814,1753265482553,-2109.27,0.00024931,2]
[374288815,1753265482563,-1050.54,0.00024931,2]
[374288816,1753265482574,-460.0,0.00024931,2]
[374288817,1753265482583,-460.0,0.00024931,2]
[374288818,1753265482593,-546.88,0.00024931,2]
[374288819,1753265482602,-723.0,0.00024932,2]
[374288820,1753265482612,-151.0,0.00024932,2]
[374288821,1753265482621,-167.32440616,0.00024932,2]
[374288822,1753265482630,-151.0,0.00024932,2]
[374288823,1753265482640,-151.0,0.00024932,2]
[374288824,1753265482649,-151.0,0.00024932,2]
[374288825,1753265482659,-500.0,0.00024932,2]
[374288826,1753265482669,-151.0,0.00024932,2]
[374288827,1753265482678,-151.0,0.00024932,2]
[374288828,1753265482688,-635.0,0.00024932,2]
[374288829,1753265482697,-800.0,0.00024938,2]
[374288830,1753265482706,-1000.0,0.0002494,5]
[374288831,1753265482716,-1789.09,0.0002495,2]
[374288832,1753265482725,-500.0,0.00024953,2]
[374288833,1753265482735,-639.525773,0.00024958,7]
[374288834,1753265482744,-639.525773,0.00024958,7]
[374288835,1753265482754,-1000.0,0.0002496,5]
[374288836,1753265482763,-600.0,0.00024961,2]
[374288837,1753265482773,-703.88,0.00024966,3]
[374288838,1753265482782,-152.712855,0.00024979,2]
[374288839,1753265482791,-1000.0,0.0002498,5]
[374288840,1753265482801,-1129.846935,0.0002498,5]
[374288841,1753265482811,-200.0,0.00024989,2]
[374288842,1753265482822,-2935.039589,0.0002499,7]
[374288843,1753265482831,-2935.039589,0.0002499,7]
[374288844,1753265482840,-295.110964,0.0002499,7]
[374288845,1753265482850,-295.110964,0.0002499,7]
[374288846,1753265482859,-964.0,0.00024998,7]
[374288847,1753265482968,-200.0,0.00024999,2]
[374288848,1753265482978,-200.0,0.00024999,2]
[374288849,1753265482987,-914.09462881,0.00024999,2]
[374288850,1753265483170,-460.0,0.00019178,2]
[374288851,1753265483180,-460.0,0.0002,2]
[374288852,1753265483190,-460.0,0.00020273,2]
[374288853,1753265483199,-460.0,0.00020547,2]
[374288854,1753265483209,-884.23,0.00023013,2]
[374288855,1753265483218,-884.23,0.00023287,2]
[374288856,1753265483227,-884.23,0.00023561,2]
[374288857,1753265483237,-884.23,0.00023835,2]
[374288858,1753265483246,-884.23,0.00024109,2]
[374288859,1753265483255,-243.93400842,0.00024383,2]
[374288860,1753265483267,-450.999092,0.00024383,2]
[374288861,1753265483278,-189.29689958,0.00024383,2]
[374288862,1753265483288,-884.23,0.00024657,2]
[374288863,1753265483297,-874.99537119,0.00024999,2]
[374288864,1753265483307,-1789.09,0.00024999,2]
[374288865,1753265483317,-14712.24096336,0.00025,30]
[374288866,1753265483329,-19842.57914457,0.00025,30]
[374288867,1753265483341,-9884.24913109,0.00025,30]
[374288868,1753265483350,-10940.07932937,0.00025,2]
[374288869,1753265483361,-2511.31496014,0.00025,2]
[374288870,1753265483805,-753.2413172,0.00019073,2]
[374288871,1753265483814,-753.2413172,0.00019073,2]
[374288872,1753265483827,-753.2413172,0.00019073,2]
[374288873,1753265483836,-753.2413172,0.00019073,2]
[374288874,1753265483845,-753.2413172,0.00019073,2]
[374288875,1753265483854,-687.83277494,0.00019073,2]
[374288876,1753265483963,-65.40854226,0.00019073,2]
[374288877,1753265483972,-394.59145774,0.00019073,2]
[374288878,1753265483994,-358.64985946,0.00019073,2]
[374288879,1753265484003,-753.2413172,0.00019073,2]
[374288880,1753265484012,-412.17189322,0.00019073,2]
[374288881,1753265484027,-341.06942398,0.00019073,2]
[374288882,1753265484037,-753.2413172,0.00019073,2]
[374288883,1753265484047,-753.2413172,0.00019073,2]
[374288884,1753265484057,-753.2413172,0.00019073,2]
[374288885,1753265484069,-753.2413172,0.00019073,2]
[374288886,1753265484079,-753.2413172,0.00019073,2]
[374288887,1753265484088,-753.2413172,0.00019073,2]
[374288888,1753265484097,-407.35605384,0.00019073,2]
[374288889,1753265484807,-345.88526336,0.00019073,2]
[374288890,1753265484818,-753.2413172,0.00019073,2]
[374288891,1753265484828,-753.2413172,0.00019073,2]
[374288892,1753265484838,-753.2413172,0.00019073,2]
[374288893,1753265484847,-753.2413172,0.00019073,2]
[374288894,1753265484857,-753.2413172,0.00019073,2]
[374288895,1753265484866,-753.2413172,0.00019073,2]
[374288896,1753265484875,-753.2413172,0.00019073,2]
[374288897,1753265484885,-753.2413172,0.00019073,2]
[374288898,1753265484895,-753.2413172,0.00019073,2]
[374288899,1753265484904,-753.2413172,0.00019073,2]
[374288900,1753265484913,-753.2413172,0.00019073,2]
[374288901,1753265484923,-753.2413172,0.00019073,2]
[374288902,1753265484932,-753.2413172,0.00019073,2]
[374288903,1753265484942,-753.2413172,0.00019073,2]
[374288904,1753265484951,-753.2413172,0.00019073,2]
[374288905,1753265484960,-753.2413172,0.00019073,2]
[374288906,1753265484969,-753.2413172,0.00019073,2]
[374288907,1753265484979,-753.2413172,0.00019073,2]
[374288908,1753265484988,-753.2413172,0.00019073,2]
[374288909,1753265484997,-753.2413172,0.00019073,2]
[374288910,1753265485007,-753.2413172,0.00019073,2]
[374288911,1753265485016,-753.2413172,0.00019073,2]
[374288912,1753265485025,-753.2413172,0.00019073,2]
[374288913,1753265485036,-753.2413172,0.00019073,2]
[374288914,1753265485151,-753.2413172,0.00019073,2]
[374288915,1753265485162,-753.2413172,0.00019073,2]
[374288916,1753265485172,-753.2413172,0.00019073,2]
[374288917,1753265485182,-753.2413172,0.00019073,2]
[374288918,1753265485192,-753.2413172,0.00019073,2]
[374288919,1753265485201,-753.2413172,0.00019073,2]
[374288920,1753265485210,-753.2413172,0.00019073,2]
[374288921,1753265485219,-753.2413172,0.00019073,2]
[374288922,1753265485228,-753.2413172,0.00019073,2]
[374288923,1753265485238,-753.2413172,0.00019073,2]
[374288924,1753265485248,-753.2413172,0.00019073,2]
[374288925,1753265485257,-753.2413172,0.00019073,2]
[374288926,1753265485267,-753.2413172,0.00019073,2]
[374288927,1753265485276,-753.2413172,0.00019073,2]
[374288928,1753265485285,-753.2413172,0.00019073,2]
[374288929,1753265485294,-753.2413172,0.00019073,2]
[374288930,1753265485304,-753.2413172,0.00019073,2]
[374288931,1753265485313,-753.2413172,0.00019073,2]
[374288932,1753265485325,-460.0,0.00019178,2]
[374288933,1753265485338,-482.37,0.00019178,2]
[374288934,1753265485348,-460.0,0.00019178,2]
[374288935,1753265485358,-460.0,0.00019178,2]
[374288936,1753265485368,-460.0,0.00019178,2]
[374288937,1753265485379,-961.16,0.00019178,2]
[374288938,1753265485388,-460.0,0.00019178,2]
[374288939,1753265485399,-460.0,0.00019452,2]
[374288940,1753265485409,-460.0,0.00019452,2]
[374288941,1753265485421,-462.32236347,0.00019452,2]
[374288942,1753265485431,-460.0,0.00019726,2]
[374288943,1753265485441,-460.0,0.00019726,2]
[374288944,1753265485451,-460.0,0.0002,2]
[374288945,1753265485461,-460.0,0.0002,2]
[374288946,1753265485472,-460.0,0.00020821,2]
[374288947,1753265485483,-160.0,0.00020949,2]
[374288948,1753265485492,-178.2325116,0.00023562,2]
[374288949,1753265485502,-577.5430988,0.00023562,2]
[374288950,1753265485511,-159.9205653,0.00023562,2]
[374288951,1753265485521,-884.23,0.00024931,2]
[374288952,1753265485530,-13478.28108587,0.00025,2]
[374288957,1753265655079,5000.0,0.000176,6]
[374288958,1753265672211,3129.19053459,0.000176,6]
[374288960,1753265984111,-167.16123397,0.00017834,2]
[374288961,1753265984131,-308.7507566,0.00018049,2]
[374288962,1753265984152,-168.648949,0.00018116,2]
[374288963,1753265984172,-300.0,0.00018877,2]
[374288964,1753265984192,-6355.22702713,0.00018878,2]
[374288965,1753265984211,-1870.56139484,0.00018878,2]
[374288966,1753265984231,-514.48250925,0.00018898,2]
[374288967,1753265984253,-500.0,0.00018898,2]
[374288968,1753265984274,-500.0,0.00018898,2]
[374288969,1753265984293,-500.0,0.00018898,2]
[374288970,1753265984314,-500.0,0.00018898,2]
[374288971,1753265984336,-500.0,0.00018898,2]
[374288972,1753265984358,-500.0,0.00018898,2]
[374288973,1753265984380,-227.09883146,0.00018898,2]
[374288974,1753265984402,-500.0,0.00018898,2]
[374288975,1753265984423,-500.0,0.00018898,2]